bitfinex/quotes_BTCUSD_20240918
["timestamp","ask_amount","ask_price","bid_price","bid_amount"]
[1726691489091,0.22820249,60107.0,60104.0,0.196377]
[1726691489295,0.05473783,60107.0,60106.0,0.006]
[1726691489509,0.05473783,60107.0,60106.0,0.172372]
[1726691489730,0.05473783,60107.0,60106.0,0.006]
[1726691489926,0.05473783,60107.0,60106.0,0.505117]
[1726691490140,0.05473783,60107.0,60106.0,0.837862]
[1726691490826,0.05473783,60107.0,60106.0,0.867862]
[1726691491248,0.05473783,60107.0,60106.0,1.200607]
[1726691492520,0.05473783,60107.0,60106.0,0.867862]
[1726691492720,0.04773783,60107.0,60106.0,0.861862]
[1726691492952,0.04773783,60107.0,60106.0,1.203607]
[1726691494651,0.04773783,60107.0,60106.0,1.204607]
[1726691494864,0.04773783,60107.0,60106.0,1.203607]
[1726691496297,0.04773783,60107.0,60106.0,1.204607]
[1726691498133,0.04773783,60107.0,60106.0,0.870862]
[1726691498351,0.04773783,60107.0,60106.0,0.205372]
[1726691498565,0.04773783,60107.0,60106.0,0.870862]
[1726691499416,0.04773783,60107.0,60106.0,0.508117]
[1726691499633,0.04773783,60107.0,60106.0,0.009]
[1726691499844,0.38047683,60107.0,60106.0,0.009]
[1726691500057,0.60025581,60107.0,60106.0,0.009]
[1726691500269,1.26573381,60107.0,60106.0,0.009]
[1726691500692,1.26573381,60107.0,60104.0,0.03]
[1726691500693,0.831877,60105.0,60104.0,0.03]
[1726691500889,0.166387,60101.0,60100.0,0.03]
[1726691501095,0.2148861,60101.0,60100.0,0.03]
[1726691501309,0.2148851,60101.0,60100.0,0.03]
[1726691501533,0.5476581,60101.0,60100.0,0.03]
[1726691501762,0.166391,60100.0,60099.0,0.03]
[1726691501948,0.04863753,60100.0,60087.0,0.362847]
[1726691502163,0.54826885,60094.0,60087.0,0.03]
[1726691502380,0.26889975,60094.0,60088.0,0.196422]
[1726691502599,0.12860562,60094.0,60089.0,0.166418]
[1726691502817,0.12860562,60094.0,60088.0,0.03]
[1726691503240,0.12860562,60094.0,60088.0,0.196421]
[1726691503675,0.13060562,60094.0,60088.0,0.196421]
[1726691503891,0.12860562,60094.0,60088.0,0.196421]
[1726691504328,0.13060562,60094.0,60088.0,0.196421]
[1726691504789,0.13060562,60094.0,60089.0,0.166418]
[1726691504790,0.13260562,60094.0,60089.0,0.166418]
[1726691505222,0.13260562,60094.0,60089.0,0.332834]
[1726691505449,0.13260562,60094.0,60091.0,0.166412]
[1726691505711,0.10649475,60094.0,60091.0,0.166412]
[1726691505933,0.10649475,60094.0,60089.0,0.332834]
[1726691506130,0.10249475,60094.0,60091.0,0.166413]
[1726691506588,0.04905285,60094.0,60093.0,0.002642]
[1726691508204,0.04905285,60094.0,60093.0,0.16905]
[1726691508865,0.04905285,60094.0,60093.0,0.834684]
[1726691510328,0.04905285,60094.0,60093.0,1.167501]
[1726691511600,0.04905285,60094.0,60093.0,0.834684]
[1726691512701,0.411855,60105.0,60093.0,0.834684]
[1726691512702,0.25043202,60117.0,60110.0,1.587253]
[1726691512925,0.04069066,60111.0,60110.0,0.925177]
[1726691513146,0.04069066,60111.0,60110.0,0.895177]
[1726691513903,0.04069066,60111.0,60110.0,1.2289]
[1726691514130,0.000821,60111.0,60110.0,1.3029]
[1726691514557,0.000821,60111.0,60110.0,1.2889]
[1726691515930,0.000821,60111.0,60110.0,1.3029]
[1726691516171,0.000821,60111.0,60110.0,1.2879]
[1726691516588,0.000821,60111.0,60110.0,1.3029]
[1726691516796,0.000821,60111.0,60110.0,1.2889]
[1726691517018,0.000821,60111.0,60110.0,1.3019]
[1726691517245,0.000821,60111.0,60110.0,0.969177]
[1726691517478,0.000821,60111.0,60110.0,0.970177]
[1726691517693,0.000821,60111.0,60110.0,1.3029]
[1726691519738,0.000821,60111.0,60110.0,1.80908766]
[1726691519956,0.000821,60111.0,60110.0,1.79508766]
[1726691520193,0.000821,60111.0,60110.0,1.90018766]
[1726691520843,0.000821,60111.0,60110.0,1.92318766]
[1726691521324,0.000821,60111.0,60110.0,1.90018766]
[1726691521981,0.000821,60111.0,60110.0,1.88618766]
[1726691522439,0.000821,60111.0,60110.0,1.90018766]
[1726691522677,0.000821,60111.0,60110.0,2.40496433]
[1726691522899,0.000821,60111.0,60110.0,2.51896433]
[1726691523149,0.000821,60111.0,60110.0,2.59656433]
[1726691526017,0.000821,60111.0,60110.0,3.85876433]
[1726691529477,0.000821,60117.0,60116.0,2.176065]
[1726691529713,0.000821,60117.0,60116.0,2.51258333]
[1726691529926,0.0031192,60133.0,60122.0,0.480026]
[1726691530169,2e-07,60129.0,60128.0,1.176827]
[1726691530422,0.0031192,60133.0,60128.0,1.176827]
[1726691530423,0.0031192,60133.0,60132.0,0.3863]
[1726691530651,0.24961102,60137.0,60136.0,0.923438]
[1726691530868,0.24961102,60137.0,60136.0,2.25769333]
[1726691531086,0.000821,60140.0,60138.0,1.297358]
[1726691531345,0.24961102,60152.0,60146.0,1.17258]
[1726691531584,0.0001,60153.0,60152.0,0.09337]
[1726691531819,0.0001,60153.0,60152.0,1.82171809]
[1726691532033,0.0031392,60165.0,60164.0,0.95443]
[1726691532260,0.0031392,60165.0,60164.0,1.52510626]
[1726691532481,0.0031392,60165.0,60164.0,2.02058393]
[1726691532716,0.0031392,60165.0,60164.0,2.12058393]
[1726691532948,0.0039392,60183.0,60171.0,0.09]
[1726691533187,0.0834392,60201.0,60171.0,0.09]
[1726691533188,0.0039392,60201.0,60197.0,0.03]
[1726691533414,0.0039392,60201.0,60198.0,1.275826]
[1726691533659,0.0039392,60201.0,60194.0,0.422254]
[1726691533904,0.0039392,60201.0,60198.0,0.166118]
[1726691534142,0.0039392,60201.0,60198.0,0.256118]
[1726691534380,0.24961102,60211.0,60198.0,0.588354]
[1726691534381,0.003428,60202.0,60198.0,0.588354]
[1726691534600,0.003428,60202.0,60198.0,0.92059]
[1726691534828,0.003428,60202.0,60198.0,0.256118]
[1726691535047,0.003428,60202.0,60198.0,0.09]
[1726691535529,0.003428,60202.0,60198.0,0.264118]
[1726691536005,0.003428,60202.0,60198.0,0.09]
[1726691536241,0.003428,60202.0,60198.0,0.093]
[1726691536506,0.003428,60202.0,60198.0,0.5946763]
[1726691536983,0.003428,60202.0,60198.0,0.9269123]
[1726691537206,0.003428,60202.0,60198.0,0.5946763]
[1726691537431,0.19402515,60199.0,60198.0,0.003]
[1726691537651,0.52625615,60199.0,60198.0,0.003]
[1726691538342,0.0002,60199.0,60198.0,0.589354]
[1726691538562,0.003428,60202.0,60201.0,0.55833]
[1726691538989,0.003428,60202.0,60201.0,0.09]
[1726691539222,0.003428,60202.0,60201.0,0.25611]
[1726691539447,0.003428,60202.0,60201.0,0.58833]
[1726691539709,0.003428,60202.0,60201.0,0.92055]
[1726691539915,0.003428,60202.0,60201.0,0.59633]
[1726691540136,0.003428,60202.0,60201.0,0.25611]
[1726691540364,0.03072424,60202.0,60197.0,0.06337]
[1726691540588,0.02757217,60201.0,60197.0,0.09337]
[1726691540810,0.02757217,60201.0,60197.0,0.12337]
[1726691541457,0.19368317,60201.0,60197.0,0.09337]
[1726691541670,0.166115,60200.0,60197.0,0.06337]
[1726691541885,0.02771015,60199.0,60197.0,0.06337]
[1726691542133,0.02771015,60199.0,60186.0,0.09]
[1726691542134,0.001,60198.0,60186.0,0.09]
[1726691542366,0.25906722,60187.0,60176.0,0.03]
[1726691542589,0.25906722,60187.0,60171.0,0.332385]
[1726691542590,0.332319,60183.0,60182.0,0.03]
[1726691542832,0.332347,60179.0,60172.0,0.09]
[1726691543069,0.25906722,60187.0,60164.0,0.03]
[1726691543070,0.166202,60168.0,60164.0,0.03]
[1726691543295,0.03088477,60178.0,60175.0,0.196181]
[1726691543532,0.9966943,60177.0,60175.0,0.362359]
[1726691543747,0.03081573,60177.0,60175.0,0.03]
[1726691544467,1.02751003,60176.0,60167.0,0.06]
[1726691544689,1.02751003,60176.0,60168.0,0.03]
[1726691544690,0.25806722,60173.0,60168.0,0.03]
[1726691544908,0.332397,60169.0,60165.0,0.03337]
[1726691545124,0.03205862,60168.0,60165.0,0.03337]
[1726691545342,0.332382,60172.0,60165.0,0.03337]
[1726691545343,0.332388,60171.0,60168.0,0.03]
[1726691545565,0.332382,60172.0,60165.0,0.06337]
[1726691545566,0.332383,60172.0,60165.0,0.06337]
[1726691545820,0.1662,60169.0,60168.0,0.03]
[1726691546025,0.1662,60169.0,60165.0,0.03]
[1726691546244,0.332382,60172.0,60168.0,0.03]
[1726691546485,0.166196,60170.0,60168.0,0.03]
[1726691546744,0.166197,60170.0,60168.0,0.035]
[1726691546964,0.332334,60181.0,60171.0,0.03]
[1726691547192,0.166177,60177.0,60172.0,0.00164]
[1726691547402,0.1,60179.0,60172.0,0.334016]
[1726691547624,0.1,60179.0,60172.0,0.167828]
[1726691547625,0.266171,60179.0,60172.0,0.167828]
[1726691547863,0.1,60179.0,60172.0,0.00164]
[1726691548061,0.1,60179.0,60172.0,0.167829]
[1726691548277,0.166174,60178.0,60172.0,0.167829]
[1726691548500,0.332359,60176.0,60172.0,0.00164]
[1726691548716,0.59040822,60179.0,60172.0,0.00164]
[1726691548932,0.25806722,60179.0,60172.0,0.00164]
[1726691549156,0.02607631,60178.0,60175.0,0.16618]
[1726691549613,0.02607631,60178.0,60177.0,0.166176]
[1726691549856,0.9966943,60187.0,60176.0,0.031]
[1726691550090,1.25476152,60178.0,60172.0,0.00164]
[1726691550332,0.42425422,60173.0,60172.0,0.00164]
[1726691550582,0.75662822,60173.0,60172.0,0.00164]
[1726691550800,1.08900222,60173.0,60172.0,0.00164]
[1726691551244,1.08900222,60173.0,60172.0,0.01064]
[1726691551464,1.08900222,60173.0,60172.0,0.00164]
[1726691551702,0.498561,60173.0,60172.0,0.00664]
[1726691552596,0.830935,60173.0,60172.0,0.00664]
[1726691553936,0.02707877,60177.0,60174.0,0.03]
[1726691553937,0.02607877,60177.0,60174.0,0.03]
[1726691554158,0.0988,60192.0,60175.0,0.09]
[1726691554159,0.24928331,60185.0,60175.0,0.09]
[1726691554408,0.24928331,60178.0,60175.0,0.06]
[1726691554630,0.99700897,60188.0,60175.0,0.09]
[1726691554856,0.166163,60182.0,60175.0,0.09]
[1726691555085,0.332316,60184.0,60175.0,0.09]
[1726691555311,0.33234,60180.0,60175.0,0.031]
[1726691555518,0.166177,60177.0,60175.0,0.03]
[1726691556195,0.498544,60175.0,60174.0,0.03337]
[1726691556892,0.830907,60175.0,60174.0,0.03337]
[1726691557148,0.332341,60180.0,60174.0,0.03337]
[1726691557368,0.166178,60177.0,60174.0,0.03337]
[1726691557598,0.332347,60178.0,60174.0,0.04537]
[1726691557820,0.166179,60177.0,60174.0,0.03337]
[1726691558036,0.166179,60176.0,60174.0,0.03337]
[1726691558306,0.16618,60176.0,60174.0,0.04037]
[1726691558515,0.16618,60176.0,60174.0,0.03337]
[1726691558760,0.166177,60177.0,60174.0,0.04237]
[1726691559211,0.16618,60176.0,60174.0,0.04237]
[1726691559864,0.498544,60175.0,60174.0,0.009]
[1726691560095,0.498544,60175.0,60172.0,0.00164]
[1726691560096,0.498561,60173.0,60172.0,0.00164]
[1726691560315,0.00082,60182.0,60181.0,0.09]
[1726691560548,0.00082,60182.0,60181.0,0.256165]
[1726691560785,0.00082,60182.0,60181.0,0.09]
[1726691561004,0.00082,60182.0,60181.0,0.06337]
[1726691561223,0.00082,60182.0,60175.0,0.09]
[1726691562396,0.00082,60182.0,60175.0,0.256181]
[1726691562616,0.00082,60182.0,60178.0,0.03337]
[1726691562839,0.00082,60182.0,60178.0,0.06337]
[1726691563046,0.00082,60182.0,60181.0,0.03837]
[1726691563273,0.00082,60182.0,60181.0,0.12337]
[1726691564227,0.00082,60182.0,60181.0,0.13637]
[1726691564446,0.00082,60182.0,60181.0,0.12337]
[1726691564884,0.00082,60182.0,60181.0,0.13737]
[1726691565576,0.00082,60182.0,60181.0,0.303535]
[1726691566092,0.00082,60182.0,60181.0,0.289535]
[1726691566306,0.00082,60182.0,60181.0,0.302535]
[1726691566522,0.00082,60182.0,60181.0,0.289535]
[1726691566963,0.00082,60182.0,60181.0,0.635865]
[1726691567188,0.00082,60182.0,60181.0,0.636865]
[1726691567620,0.02607175,60189.0,60183.0,0.03337]
[1726691567829,0.02607175,60189.0,60185.0,0.199523]
[1726691568047,0.02607175,60189.0,60184.0,0.03]
[1726691568048,0.02607175,60189.0,60187.0,0.03337]
[1726691568758,0.02607175,60189.0,60187.0,0.365667]
[1726691568984,0.02607175,60189.0,60188.0,0.621808]
[1726691569227,0.00082,60199.0,60197.0,0.166119]
[1726691569803,0.00082,60199.0,60196.0,0.03]
[1726691570717,0.00082,60199.0,60197.0,0.006]
[1726691570945,0.00082,60199.0,60197.0,0.16612]
[1726691571421,0.00082,60199.0,60196.0,0.038]
[1726691571661,0.00082,60199.0,60194.0,0.03]
[1726691571891,0.00082,60199.0,60194.0,0.196128]
[1726691572154,0.24924603,60197.0,60191.0,0.03337]
[1726691572384,0.334053,60199.0,60191.0,0.03337]
[1726691572385,0.166129,60194.0,60191.0,0.03337]
[1726691572611,0.332249,60196.0,60190.0,0.03337]
[1726691572839,0.16613,60194.0,60190.0,0.03337]
[1726691573081,0.166126,60195.0,60190.0,0.03337]
[1726691573305,0.35830935,60198.0,60190.0,0.199509]
[1726691573306,0.166122,60197.0,60190.0,0.199509]
[1726691573721,0.35830935,60198.0,60190.0,0.199509]
[1726691573966,0.166123,60197.0,60190.0,0.199509]
[1726691574223,0.166123,60197.0,60190.0,0.206509]
[1726691574464,0.166123,60197.0,60192.0,0.166134]
[1726691574725,0.166123,60197.0,60190.0,0.03337]
[1726691574964,0.99758053,60199.0,60190.0,0.03937]
[1726691574965,0.332239,60198.0,60190.0,0.03937]
[1726691575441,0.166121,60197.0,60192.0,0.166134]
[1726691575674,0.166121,60197.0,60191.0,0.166137]
[1726691575910,0.166122,60197.0,60192.0,0.166133]
[1726691576208,0.332237,60198.0,60192.0,0.166133]
[1726691576209,0.166124,60196.0,60192.0,0.166133]
[1726691576954,0.19219342,60196.0,60192.0,0.166133]
[1726691577683,0.19219342,60196.0,60192.0,0.173133]
[1726691577930,0.19219342,60196.0,60192.0,0.166133]
[1726691578172,0.19219342,60196.0,60192.0,0.007]
[1726691578173,0.166127,60195.0,60192.0,0.007]
[1726691578419,0.19219442,60196.0,60192.0,0.173134]
[1726691578654,0.02606942,60196.0,60195.0,0.166126]
[1726691578888,0.02606942,60196.0,60195.0,0.860632]
[1726691579109,0.00082,60199.0,60198.0,0.83059]
[1726691579348,0.00082,60199.0,60198.0,1.253826]
[1726691579577,0.00082,60199.0,60198.0,1.287196]
[1726691580257,0.00082,60199.0,60198.0,1.286196]
[1726691580488,0.00082,60199.0,60198.0,1.295196]
[1726691580733,0.00082,60199.0,60198.0,1.287196]
[1726691580969,0.00082,60199.0,60198.0,0.96796]
[1726691581193,0.00082,60199.0,60198.0,1.300196]
[1726691581682,0.00082,60199.0,60198.0,1.286196]
[1726691581933,0.00082,60199.0,60198.0,1.619432]
[1726691582181,0.00082,60199.0,60198.0,1.80548567]
[1726691582420,0.00082,60199.0,60198.0,2.16897794]
[1726691582683,0.00082,60199.0,60198.0,2.75408411]
[1726691582906,0.00082,60199.0,60198.0,2.85501014]
[1726691583139,0.00082,60199.0,60198.0,2.86901014]
[1726691583377,0.003428,60202.0,60201.0,2.07458]
[1726691583598,0.0031192,60204.0,60203.0,1.36580403]
[1726691583834,0.0031192,60204.0,60203.0,1.86931575]
[1726691584096,0.0002,60219.0,60218.0,0.290433]
[1726691584335,0.24937564,60219.0,60218.0,1.4986507]
[1726691584582,0.0033192,60239.0,60221.0,1.947365]
[1726691584819,0.0033192,60239.0,60221.0,1.461255]
[1726691585305,0.0033192,60239.0,60221.0,1.29319867]
[1726691585562,0.0033192,60239.0,60221.0,1.130145]
[1726691585563,0.166025,60232.0,60221.0,1.130145]
[1726691585801,0.16621221,60237.0,60221.0,1.130145]
[1726691586033,0.16621221,60237.0,60221.0,1.64830867]
[1726691586034,0.24937685,60237.0,60221.0,1.64830867]
[1726691586509,0.24937685,60237.0,60221.0,1.98041867]
[1726691586738,0.24937685,60237.0,60221.0,2.08041867]
[1726691586973,0.24937685,60237.0,60221.0,2.09441867]
[1726691587224,0.24937685,60237.0,60221.0,2.08041867]
[1726691587458,0.24917564,60230.0,60221.0,1.74830867]
[1726691587718,0.24917564,60230.0,60221.0,1.66230867]
[1726691587954,0.24917564,60230.0,60221.0,1.64830867]
[1726691588193,0.24917564,60230.0,60221.0,1.66230867]
[1726691588941,0.24937685,60237.0,60221.0,1.66230867]
[1726691589236,0.24917564,60229.0,60221.0,1.99441867]
[1726691589474,0.24917564,60229.0,60221.0,2.08041867]
[1726691589717,0.24937685,60237.0,60234.0,1.584171]
[1726691589959,0.24937685,60237.0,60234.0,1.585171]
[1726691590488,0.00020121,60237.0,60234.0,2.1526067]
[1726691591498,0.00020121,60237.0,60234.0,1.89469467]
[1726691591747,0.00020121,60237.0,60234.0,0.953465]
[1726691592012,0.00020121,60237.0,60234.0,0.621427]
[1726691592552,0.00020121,60237.0,60234.0,1.13951867]
[1726691592821,0.00020121,60237.0,60234.0,1.66105667]
[1726691593049,0.00020121,60237.0,60234.0,1.99309467]
[1726691593302,0.00020121,60237.0,60234.0,2.02309467]
[1726691593543,0.00020121,60237.0,60236.0,1.285464]
[1726691593776,0.00020121,60237.0,60236.0,2.1614567]
[1726691594305,0.24917564,60251.0,60236.0,2.1614567]
[1726691594306,0.0031192,60275.0,60239.0,0.03337]
[1726691594596,0.006652,60293.0,60238.0,0.091]
[1726691594597,0.003974,60289.0,60288.0,0.34224]
[1726691595345,0.0104452,60289.0,60288.0,0.85935]
[1726691595348,0.0104452,60289.0,60288.0,0.25587]
[1726691595350,0.0104452,60289.0,60288.0,0.58761]
[1726691595560,0.0104452,60289.0,60288.0,0.19587]
[1726691596068,0.0104452,60289.0,60288.0,0.03]
[1726691596311,0.0104452,60289.0,60288.0,0.58761]
[1726691596634,0.0104452,60289.0,60288.0,0.009]
[1726691596834,0.0104452,60289.0,60288.0,0.039]
[1726691597096,0.0104452,60289.0,60288.0,0.21387]
[1726691597371,0.0104452,60289.0,60288.0,0.048]
[1726691597639,0.0104452,60289.0,60273.0,0.03]
[1726691597865,0.0104452,60289.0,60271.0,0.06]
[1726691597866,0.25791203,60278.0,60272.0,0.165912]
[1726691598105,0.25791203,60283.0,60271.0,0.03]
[1726691598367,0.001,60280.0,60268.0,0.03]
[1726691598609,0.99607381,60282.0,60268.0,0.03]
[1726691598610,0.331805,60277.0,60268.0,0.03]
[1726691598894,0.331805,60277.0,60269.0,0.03]
[1726691599176,0.16591,60274.0,60269.0,0.03]
[1726691599379,0.0064712,60277.0,60276.0,0.03]
[1726691599929,0.0064712,60277.0,60276.0,0.061]
[1726691600169,0.0064712,60277.0,60276.0,0.256903]
[1726691600413,0.0064712,60277.0,60276.0,0.255903]
[1726691600867,0.0064712,60277.0,60276.0,0.09]
[1726691601343,0.0064712,60277.0,60276.0,0.03]
[1726691601605,0.331807,60276.0,60273.0,0.03]
[1726691601850,0.331829,60272.0,60268.0,0.03]
[1726691602093,0.0074712,60277.0,60266.0,0.06]
[1726691602094,0.16592,60270.0,60266.0,0.03]
[1726691602349,0.331824,60273.0,60269.0,0.03]
[1726691602582,0.25534505,60276.0,60269.0,0.03]
[1726691602848,0.165907,60275.0,60270.0,0.165918]
[1726691603079,0.25534505,60276.0,60269.0,0.03]
[1726691603080,0.165912,60273.0,60269.0,0.03]
[1726691603333,0.002,60270.0,60269.0,0.03]
[1726691603571,0.0064712,60276.0,60269.0,0.03]
[1726691603811,1.32729187,60275.0,60269.0,0.03]
[1726691604077,1.32729187,60275.0,60258.0,0.03337]
[1726691604078,0.25791203,60272.0,60252.0,0.09]
[1726691604408,0.25791203,60257.0,60249.0,0.03]
[1726691604663,0.001,60256.0,60249.0,0.03]
[1726691604902,0.497844,60260.0,60259.0,0.03]
[1726691605133,0.497844,60260.0,60257.0,0.03]
[1726691605134,0.3343922,60260.0,60257.0,0.03]
[1726691605390,0.0024972,60260.0,60256.0,0.03]
[1726691605627,0.165975,60250.0,60247.0,0.03]
[1726691605866,0.0034972,60260.0,60253.0,0.03]
[1726691606108,0.497892,60254.0,60253.0,0.03]
[1726691606340,0.165964,60254.0,60253.0,0.03]
[1726691606568,0.02604491,60258.0,60253.0,0.195965]
[1726691606805,0.02604491,60258.0,60254.0,0.165962]
[1726691607034,0.19199891,60258.0,60254.0,0.165962]
[1726691607263,0.19199891,60258.0,60253.0,0.03]
[1726691607497,0.165955,60257.0,60253.0,0.03]
[1726691607728,0.02604491,60258.0,60257.0,0.165955]
[1726691608012,0.02804491,60258.0,60257.0,0.165955]
[1726691608232,0.03054211,60258.0,60254.0,0.03]
[1726691608462,0.0044972,60258.0,60257.0,0.919777]
[1726691608684,0.0044972,60258.0,60257.0,1.251688]
[1726691608914,0.0044972,60258.0,60257.0,1.285058]
[1726691609374,0.0064972,60258.0,60257.0,1.286058]
[1726691609614,0.0024972,60258.0,60257.0,1.286058]
[1726691610079,0.0024972,60258.0,60257.0,1.295058]
[1726691610080,0.0034972,60258.0,60257.0,1.295058]
[1726691610319,0.0034972,60258.0,60257.0,1.286058]
[1726691610572,0.0044972,60258.0,60257.0,1.298058]
[1726691610817,0.0034972,60258.0,60257.0,0.966147]
[1726691611066,0.0024972,60258.0,60257.0,1.286058]
[1726691611307,0.0034972,60258.0,60257.0,1.81702267]
[1726691612419,0.0024972,60258.0,60257.0,1.80402267]
[1726691612864,0.0034972,60258.0,60257.0,1.89072267]
[1726691613121,0.0034972,60258.0,60257.0,1.87972267]
[1726691613347,0.0044972,60258.0,60257.0,1.88872267]
[1726691614508,0.24893167,60279.0,60277.0,0.165898]
[1726691614767,0.9956358,60278.0,60277.0,0.165898]
[1726691614985,0.9956358,60278.0,60277.0,0.497699]
[1726691615206,0.165884,60283.0,60278.0,0.165897]
[1726691615432,0.331734,60290.0,60278.0,0.03]
[1726691615668,0.9956358,60292.0,60278.0,0.03]
[1726691615885,0.165887,60282.0,60278.0,0.195896]
[1726691616112,0.165898,60278.0,60277.0,0.03]
[1726691616330,0.165897,60279.0,60278.0,0.03]
[1726691616774,0.331786,60280.0,60276.0,0.03]
[1726691617050,0.001,60282.0,60270.0,0.03]
[1726691617269,0.331816,60275.0,60271.0,0.03337]
[1726691617504,0.331819,60274.0,60271.0,0.03337]
[1726691617741,0.497743,60272.0,60271.0,0.03337]
[1726691617969,0.001,60271.0,60260.0,0.06]
[1726691618230,0.165926,60268.0,60266.0,0.9956358]
[1726691618513,0.165926,60268.0,60259.0,0.03337]
[1726691618514,0.9956358,60284.0,60278.0,0.03]
[1726691618975,1.3274028,60284.0,60278.0,0.195895]
[1726691619222,0.165888,60282.0,60278.0,0.195895]
[1726691619443,0.9956358,60284.0,60278.0,0.03]
[1726691619444,0.331764,60284.0,60278.0,0.03]
[1726691619665,0.332756,60286.0,60278.0,0.195897]
[1726691619890,0.16589,60281.0,60278.0,0.03]
[1726691620113,0.165896,60279.0,60277.0,0.03]
[1726691620563,0.165896,60279.0,60278.0,0.001]
[1726691620857,0.165896,60279.0,60278.0,0.031]
[1726691621085,0.829476,60279.0,60278.0,0.001]
[1726691621305,0.829476,60279.0,60273.0,0.03]
[1726691621306,0.165904,60276.0,60273.0,0.03]
[1726691621527,0.331811,60276.0,60270.0,0.165919]
[1726691621748,0.2839448,60281.0,60271.0,0.9956358]
[1726691621749,0.165909,60274.0,60271.0,0.9956358]
[1726691621979,0.331813,60275.0,60270.0,0.195918]
[1726691621980,0.165912,60273.0,60270.0,0.195918]
[1726691622436,0.001,60274.0,60266.0,0.03]
[1726691622659,0.001,60274.0,60270.0,0.03]
[1726691622660,0.165918,60271.0,60270.0,0.03]
[1726691623125,0.331821,60274.0,60266.0,1.1615658]
[1726691623126,0.16592,60270.0,60269.0,0.03]
[1726691623636,0.331792,60279.0,60264.0,0.03337]
[1726691623637,0.165931,60266.0,60264.0,0.03337]
[1726691623865,0.001,60279.0,60264.0,0.03337]
[1726691623866,0.33183,60272.0,60265.0,0.09]
[1726691624089,0.165924,60269.0,60267.0,0.03]
[1726691624317,0.0260365,60275.0,60267.0,0.03]
[1726691624551,0.001,60270.0,60267.0,0.361852]
[1726691624776,0.001,60270.0,60267.0,0.03]
[1726691624999,0.16692,60270.0,60267.0,0.03]
[1726691625460,0.165925,60268.0,60267.0,0.03]
[1726691625689,0.165922,60269.0,60267.0,0.03]
[1726691625923,0.165935,60265.0,60262.0,0.06337]
[1726691626151,0.165931,60266.0,60265.0,0.001]
[1726691626395,0.001,60269.0,60257.0,0.00164]
[1726691626619,0.99550364,60270.0,60257.0,0.00164]
[1726691626620,0.497859,60258.0,60257.0,0.00164]
[1726691626858,0.829765,60258.0,60257.0,0.00164]
[1726691627078,0.165953,60258.0,60257.0,0.00164]
[1726691627313,0.16575336,60258.0,60257.0,0.00164]
[1726691627815,0.001,60258.0,60257.0,0.369551]
[1726691628045,0.001,60258.0,60257.0,0.867417]
[1726691628276,0.001,60258.0,60257.0,0.927417]
[1726691628798,0.001,60258.0,60257.0,0.595506]
[1726691629037,0.165939,60263.0,60258.0,0.16595]
[1726691629298,0.02604057,60268.0,60267.0,0.497784]
[1726691629539,0.99650364,60287.0,60267.0,0.497784]
[1726691629540,0.24889036,60278.0,60273.0,0.165911]
[1726691629798,0.24889036,60278.0,60267.0,0.421856]
[1726691629799,0.24889036,60278.0,60275.0,0.331812]
[1726691630027,0.24889036,60278.0,60274.0,0.03]
[1726691630244,0.02603608,60281.0,60274.0,0.03]
[1726691630463,0.02603608,60281.0,60277.0,0.165899]
[1726691630694,0.02603608,60281.0,60274.0,0.06337]
[1726691630695,0.165903,60277.0,60274.0,0.06337]
[1726691630920,0.02603608,60281.0,60276.0,0.165902]
[1726691631167,0.165893,60280.0,60276.0,0.165902]
[1726691631399,0.19192608,60281.0,60276.0,0.165902]
[1726691631639,0.165892,60280.0,60276.0,0.165902]
[1726691631862,0.02603608,60281.0,60274.0,0.395183]
[1726691631863,0.02603608,60281.0,60274.0,0.06337]
[1726691632306,0.02603608,60281.0,60276.0,0.165903]
[1726691632307,0.003,60278.0,60276.0,0.165903]
[1726691632538,0.165899,60278.0,60274.0,0.06337]
[1726691632764,0.165899,60278.0,60276.0,0.006]
[1726691633224,0.331788,60280.0,60275.0,0.165906]
[1726691633225,0.497681,60280.0,60275.0,0.165906]
[1726691633465,0.05349882,60279.0,60275.0,0.331812]
[1726691633764,0.05349882,60280.0,60277.0,0.1659]
[1726691633862,0.02603608,60281.0,60280.0,0.165892]
[1726691634088,0.00082,60282.0,60281.0,0.527668]
[1726691634543,0.00082,60282.0,60281.0,0.859447]
[1726691635042,0.00082,60282.0,60281.0,0.919447]
[1726691635271,0.00082,60282.0,60281.0,1.285596]
[1726691635741,0.0268477,60282.0,60281.0,1.285596]
[1726691636647,0.0268477,60282.0,60281.0,1.297596]
[1726691636648,0.0278477,60282.0,60281.0,1.297596]
[1726691637107,0.0278477,60282.0,60281.0,1.296596]
[1726691637351,0.0278477,60282.0,60281.0,1.297596]
[1726691637593,0.00182,60282.0,60281.0,0.633038]
[1726691637822,0.00182,60282.0,60281.0,0.964817]
[1726691638271,0.00182,60282.0,60281.0,0.633038]
[1726691638498,0.00182,60282.0,60281.0,0.964817]
[1726691638965,0.00182,60282.0,60281.0,0.241259]
[1726691639211,0.00182,60282.0,60281.0,0.603038]
[1726691639457,0.00182,60282.0,60281.0,1.296596]
[1726691639714,0.00182,60282.0,60281.0,1.297596]
[1726691640447,0.00182,60282.0,60281.0,0.964817]
[1726691640675,0.0278484,60282.0,60281.0,0.964817]
[1726691640895,0.0278484,60282.0,60281.0,0.965817]
[1726691641563,0.00182,60282.0,60281.0,0.965817]
[1726691642016,0.00182,60282.0,60281.0,0.633038]
[1726691642479,0.00182,60282.0,60281.0,0.964817]
[1726691643200,0.00182,60282.0,60281.0,0.04537]
[1726691643441,1.08916403,60282.0,60281.0,0.012]
[1726691643674,0.831252,60282.0,60281.0,0.012]